fUST/lending_fUST_20241026
["ID","MTS","AMOUNT","RATE_DAILY","PERIOD"]
[340847297,1729922882266,-740.49,0.00039452,120]
[340847298,1729922882304,-12053.78,0.00039452,60]
[340847299,1729922882341,-500.0,0.00039452,120]
[340847300,1729922882380,-596.71,0.00039452,120]
[340847301,1729922882417,-500.0,0.00039452,120]
[340847302,1729922882454,-618.89,0.00039452,120]
[340847303,1729922882490,-500.0,0.00039452,120]
[340847304,1729922882526,-500.0,0.00039452,120]
[340847305,1729922882562,-500.0,0.00039452,120]
[340847306,1729922882598,-852.92,0.00039452,120]
[340847307,1729922882635,-186.9588639,0.00039452,120]
[340847308,1729922882674,-500.0,0.00039452,120]
[340847309,1729922882713,-500.0,0.00039452,120]
[340847310,1729922882750,-500.0,0.00039452,120]
[340847311,1729922882788,-714.12,0.00039452,120]
[340847312,1729922882825,-1004.2,0.00039452,120]
[340847313,1729922882861,-4091.94,0.00039452,120]
[340847314,1729922882896,-2465.37,0.00039452,120]
[340847315,1729922882932,-500.0,0.00039452,30]
[340847316,1729922882966,-500.0,0.00039452,60]
[340847317,1729922882999,-500.0,0.00039452,120]
[340847318,1729922883037,-6307.75,0.00039452,120]
[340847319,1729922883075,-1333.31,0.00039452,120]
[340847320,1729922883111,-1109.11,0.00039452,120]
[340847321,1729922883145,-745.83,0.00039452,120]
[340847322,1729922883181,-500.0,0.00039452,120]
[340847323,1729922883219,-663.59,0.00039452,120]
[340847324,1729922883258,-3262.64,0.00039452,120]
[340847325,1729922883295,-755.36,0.00039452,120]
[340847326,1729922883331,-500.0,0.00039452,120]
[340847327,1729922883368,-509.83,0.00039452,120]
[340847328,1729922883403,-1887.15,0.00039452,120]
[340847329,1729922883437,-732.27,0.00039452,120]
[340847330,1729922883472,-500.0,0.00039452,120]
[340847331,1729922883508,-666.9,0.00039452,120]
[340847332,1729922883543,-3097.42,0.00039452,120]
[340847333,1729922883578,-500.0,0.00039452,120]
[340847334,1729922883613,-1747.41,0.00039452,120]
[340847335,1729922883649,-701.22,0.00039452,120]
[340847336,1729922883686,-593.79,0.00039452,120]
[340847337,1729922883731,-3038.71,0.00039452,120]
[340847338,1729922883770,-500.0,0.00039452,120]
[340847339,1729922883809,-1236.57,0.00039452,120]
[340847340,1729922883847,-500.0,0.00039452,120]
[340847341,1729922883883,-1866.69,0.00039452,120]
[340847342,1729922883919,-550.45600199,0.00039452,120]
[340847343,1729922883954,-617.34,0.00039452,120]
[340847344,1729922884147,-624.57,0.00039452,120]
[340847345,1729922884187,-610.14,0.00039452,120]
[340847346,1729922884229,-500.0,0.00039452,120]
[340847347,1729922884267,-810.12,0.00039452,120]
[340847348,1729922884304,-500.0,0.00039452,120]
[340847349,1729922884342,-3305.93,0.00039452,120]
[340847350,1729922884379,-151.0,0.00039589,120]
[340847351,1729922884415,-500.0,0.00039726,120]
[340847352,1729922884450,-529.03,0.00039726,120]
[340847353,1729922884488,-500.0,0.00039726,120]
[340847354,1729922884526,-561.85,0.00039726,120]
[340847355,1729922884563,-573.22,0.00039726,120]
[340847356,1729922884604,-500.0,0.00039726,120]
[340847357,1729922884639,-507.51303154,0.00039726,120]
[340847358,1729922884676,-511.31,0.00039726,120]
[340847359,1729922884710,-1069.36,0.00039726,120]
[340847360,1729922884743,-531.2814239,0.00039726,120]
[340847361,1729922884781,-330.79813,0.00039726,120]
[340847362,1729922884818,-500.0,0.00039726,120]
[340847363,1729922884853,-770.08,0.00039726,120]
[340847364,1729922884889,-587.05,0.00039726,120]
[340847365,1729922884926,-500.0,0.00039726,120]
[340847366,1729922884962,-500.0,0.00039726,120]
[340847367,1729922885000,-500.0,0.00039726,120]
[340847368,1729922885036,-741.21,0.00039726,120]
[340847369,1729922885071,-500.0,0.00039726,120]
[340847370,1729922885104,-860.83,0.00039726,120]
[340847371,1729922885138,-523.0,0.00039726,120]
[340847372,1729922885171,-501.59092247,0.00039726,120]
[340847373,1729922885205,-701.19,0.00039726,120]
[340847374,1729922885239,-688.14,0.00039726,120]
[340847375,1729922885272,-500.0,0.00039726,120]
[340847376,1729922885304,-543.53894977,0.00039726,120]
[340847377,1729922885337,-500.0,0.00039726,120]
[340847378,1729922885370,-500.0,0.00039726,120]
[340847379,1729922885403,-651.97,0.00039726,120]
[340847380,1729922885436,-500.0,0.00039726,120]
[340847381,1729922885471,-500.0,0.00039726,120]
[340847382,1729922885508,-517.27073091,0.00039726,120]
[340847383,1729922885544,-1101.64,0.00039726,120]
[340847384,1729922885580,-631.38,0.00039726,120]
[340847385,1729922885613,-500.0,0.00039726,120]
[340847386,1729922885648,-500.0,0.00039726,120]
[340847387,1729922885681,-500.0,0.00039726,120]
[340847388,1729922885715,-233.08867326,0.00039726,120]
[340847389,1729922885748,-512.3,0.00039726,120]
[340847390,1729922885783,-877.85,0.00039726,120]
[340847391,1729922885816,-500.0,0.00039726,120]
[340847392,1729922885849,-671.09,0.00039726,120]
[340847393,1729922885882,-500.0,0.00039726,120]
[340847394,1729922885917,-1529.36,0.00039726,120]
[340847395,1729922885951,-500.0,0.00039726,120]
[340847396,1729922885985,-1375.9,0.00039726,120]
[340847397,1729922886019,-500.0,0.00039726,120]
[340847398,1729922886053,-541.09,0.00039726,120]
[340847399,1729922886087,-1117.62,0.00039726,120]
[340847400,1729922886122,-500.0,0.00039726,120]
[340847401,1729922886155,-2332.27,0.00039726,120]
[340847402,1729922886190,-500.0,0.00039726,120]
[340847403,1729922886225,-500.0,0.00039726,120]
[340847404,1729922886258,-1077.9,0.00039726,120]
[340847405,1729922886291,-500.0,0.00039726,120]
[340847406,1729922886323,-603.68,0.00039726,120]
[340847407,1729922886356,-726.9,0.00039726,120]
[340847408,1729922886393,-1364.93,0.00039726,120]
[340847409,1729922886426,-500.0,0.00039726,120]
[340847410,1729922886460,-504.08769848,0.00039726,120]
[340847411,1729922886494,-519.91,0.00039726,120]
[340847412,1729922886528,-742.5,0.00039726,120]
[340847413,1729922886562,-1556.5,0.00039726,120]
[340847414,1729922886597,-501.11634114,0.00039726,120]
[340847415,1729922886632,-209.41317061,0.00039726,120]
[340847416,1729922886668,-1055.85,0.00039726,120]
[340847417,1729922886701,-529.75,0.00039726,120]
[340847418,1729922886735,-1021.03,0.00039726,120]
[340847419,1729922886771,-563.99,0.00039726,120]
[340847420,1729922886806,-500.0,0.00039726,120]
[340847421,1729922886840,-500.0,0.00039726,120]
[340847422,1729922886874,-500.0,0.00039726,120]
[340847423,1729922886909,-683.79,0.00039726,120]
[340847424,1729922886945,-500.0,0.00039726,120]
[340847425,1729922886981,-1000.0,0.00039726,120]
[340847426,1729922887017,-500.0,0.00039726,120]
[340847427,1729922887052,-439.48845796,0.00039726,120]
[340847428,1729922887087,-539.15,0.00039726,120]
[340847429,1729922887121,-500.0,0.00039726,120]
[340847430,1729922887155,-500.0,0.00039726,120]
[340847431,1729922887192,-806.51,0.00039726,120]
[340847432,1729922887229,-1274.97,0.00039726,120]
[340847433,1729922887262,-818.92,0.00039726,120]
[340847434,1729922887296,-1696.78,0.00039726,120]
[340847435,1729922887330,-682.77,0.00039726,120]
[340847436,1729922887364,-326.77824909,0.00039726,120]
[340847437,1729922887398,-500.0,0.00039726,120]
[340847438,1729922887434,-1069.12,0.00039726,120]
[340847439,1729922887629,-572.71054539,0.00039726,120]
[340847440,1729922887664,-500.0,0.00039726,120]
[340847441,1729922887700,-1031.89,0.00039726,120]
[340847442,1729922887736,-657.5,0.00039726,120]
[340847443,1729922887774,-919.35,0.00039726,120]
[340847444,1729922887809,-588.95986637,0.00039726,120]
[340847445,1729922887843,-587.5,0.00039726,120]
[340847446,1729922887876,-500.0,0.00039726,120]
[340847447,1729922887910,-500.0,0.00039726,120]
[340847448,1729922887945,-500.0,0.00039726,120]
[340847449,1729922887978,-500.0,0.00039726,120]
[340847450,1729922888013,-500.0,0.00039726,120]
[340847451,1729922888047,-838.34,0.00039726,120]
[340847452,1729922888082,-539.66,0.00039726,120]
[340847453,1729922888117,-671.94,0.00039726,120]
[340847454,1729922888152,-200.0,0.00039726,120]
[340847455,1729922888188,-500.0,0.00039726,120]
[340847456,1729922888224,-651.68,0.00039726,120]
[340847457,1729922888260,-690.97,0.00039726,120]
[340847458,1729922888295,-502.9034889,0.00039726,120]
[340847459,1729922888331,-25955.76,0.00039726,60]
[340847460,1729922888367,-500.0,0.00039726,120]
[340847461,1729922888402,-854.34,0.00039726,120]
[340847462,1729922888440,-1000.0,0.00039726,120]
[340847463,1729922888476,-1115.62,0.00039726,120]
[340847464,1729922888512,-2200.05,0.00039726,120]
[340847465,1729922888548,-629.76,0.00039726,120]
[340847466,1729922888582,-1907.85,0.00039726,120]
[340847467,1729922888616,-500.0,0.00039726,120]
[340847468,1729922888650,-2156.9,0.00039726,120]
[340847469,1729922888686,-500.0,0.00039726,120]
[340847470,1729922888719,-500.0,0.00039726,120]
[340847471,1729922888754,-500.0,0.00039726,120]
[340847472,1729922888790,-943.32,0.00039726,120]
[340847473,1729922888823,-1041.41,0.00039726,120]
[340847474,1729922888858,-505.27364047,0.00039726,120]
[340847475,1729922888893,-3371.57,0.00039726,120]
[340847476,1729922888928,-728.94,0.00039726,120]
[340847477,1729922888961,-651.62,0.00039726,120]
[340847478,1729922888995,-504.97346762,0.00039726,120]
[340847479,1729922889031,-570.17,0.00039726,120]
[340847480,1729922889067,-748.84,0.00039726,120]
[340847481,1729922889107,-538.73,0.00039726,120]
[340847482,1729922889144,-506.87644248,0.00039726,120]
[340847483,1729922889181,-504.11010818,0.00039726,120]
[340847484,1729922889220,-625.81,0.00039726,120]
[340847485,1729922889257,-1000.17,0.00039726,120]
[340847486,1729922889293,-525.717422,0.00039726,120]
[340847487,1729922889330,-678.04,0.00039726,120]
[340847488,1729922889365,-500.0,0.00039726,120]
[340847489,1729922889401,-529.84,0.00039726,120]
[340847490,1729922889435,-500.0,0.00039726,120]
[340847491,1729922889470,-648.97,0.00039726,120]
[340847492,1729922889506,-500.0,0.00039726,120]
[340847493,1729922889542,-622.23082269,0.00039726,120]
[340847494,1729922889577,-962.66,0.00039726,120]
[340847495,1729922889612,-638.5,0.00039726,60]
[340847496,1729922889649,-500.0,0.00039726,120]
[340847497,1729922889683,-700.16,0.00039726,120]
[340847498,1729922889719,-500.0,0.00039726,120]
[340847499,1729922889753,-504.48836795,0.00039726,120]
[340847500,1729922889793,-500.0,0.00039726,120]
[340847501,1729922889828,-500.0,0.00039726,120]
[340847502,1729922889863,-524.90437326,0.00039726,120]
[340847503,1729922889900,-1128.88,0.00039726,120]
[340847504,1729922889937,-523.1,0.00039726,120]
[340847505,1729922889973,-5876.07,0.00039726,120]
[340847506,1729922890008,-500.0,0.00039726,120]
[340847507,1729922890043,-853.81,0.00039726,120]
[340847508,1729922890078,-838.79,0.00039726,120]
[340847509,1729922890114,-503.22668668,0.00039726,120]
[340847510,1729922890149,-590.88,0.00039726,120]
[340847511,1729922890186,-757.11,0.00039726,120]
[340847512,1729922890221,-500.0,0.00039726,120]
[340847513,1729922890255,-500.0,0.00039726,120]
[340847514,1729922890291,-528.9810304,0.00039726,120]
[340847515,1729922890324,-500.0,0.00039726,120]
[340847516,1729922890357,-591.89,0.00039726,120]
[340847517,1729922890391,-658.79,0.00039726,120]
[340847518,1729922890425,-500.0,0.00039726,120]
[340847519,1729922890459,-593.41982852,0.00039726,120]
[340847520,1729922890494,-699.36,0.00039726,120]
[340847521,1729922890531,-740.49,0.00039726,120]
[340847522,1729922890565,-12053.78,0.00039726,60]
[340847523,1729922890598,-500.0,0.00039726,120]
[340847524,1729922890631,-596.71,0.00039726,120]
[340847525,1729922890665,-500.0,0.00039726,120]
[340847526,1729922890697,-618.89,0.00039726,120]
[340847527,1729922890731,-500.0,0.00039726,120]
[340847528,1729922890765,-150.4386637,0.00039726,120]
[340847529,1729922890800,-506.32837185,0.00039726,120]
[340847530,1729922890835,-852.92,0.00039726,120]
[340847531,1729922891035,-511.25793548,0.00039726,120]
[340847532,1729922891073,-500.0,0.00039726,120]
[340847533,1729922891109,-500.0,0.00039726,120]
[340847534,1729922891145,-714.12,0.00039726,120]
[340847535,1729922891182,-1004.2,0.00039726,120]
[340847536,1729922891218,-4091.94,0.00039726,120]
[340847537,1729922891256,-2465.37,0.00039726,120]
[340847538,1729922891291,-503.17946019,0.00039726,60]
[340847539,1729922891325,-500.0,0.00039726,120]
[340847540,1729922891360,-500.0,0.00039726,30]
[340847541,1729922891397,-6307.75,0.00039726,120]
[340847542,1729922891433,-1333.31,0.00039726,120]
[340847543,1729922891468,-1109.11,0.00039726,120]
[340847544,1729922891504,-745.83,0.00039726,120]
[340847545,1729922891538,-502.2600117,0.00039726,120]
[340847546,1729922891574,-3262.64,0.00039726,120]
[340847547,1729922891608,-663.59,0.00039726,120]
[340847548,1729922891643,-755.36,0.00039726,120]
[340847549,1729922891682,-500.0,0.00039726,120]
[340847550,1729922891718,-509.83,0.00039726,120]
[340847551,1729922891754,-1887.15,0.00039726,120]
[340847552,1729922891793,-732.27,0.00039726,120]
[340847553,1729922891827,-568.30648802,0.00039726,120]
[340847554,1729922891861,-666.9,0.00039726,120]
[340847555,1729922891897,-3097.42,0.00039726,120]
[340847556,1729922891932,-500.0,0.00039726,120]
[340847557,1729922891966,-1747.41,0.00039726,120]
[340847558,1729922892003,-701.22,0.00039726,120]
[340847559,1729922892038,-593.79,0.00039726,120]
[340847560,1729922892077,-3038.71,0.00039726,120]
[340847561,1729922892113,-500.0,0.00039726,120]
[340847562,1729922892146,-1236.57,0.00039726,120]
[340847563,1729922892180,-500.0,0.00039726,120]
[340847564,1729922892215,-1866.69,0.00039726,120]
[340847565,1729922892249,-617.34,0.00039726,120]
[340847566,1729922892282,-624.57,0.00039726,120]
[340847567,1729922892316,-500.0,0.00039726,120]
[340847568,1729922892349,-610.14,0.00039726,120]
[340847569,1729922892383,-810.12,0.00039726,120]
[340847570,1729922892418,-3305.93,0.00039726,120]
[340847571,1729922892454,-500.0,0.00039726,120]
[340847572,1729922892490,-1733.544952,0.0003988,30]
[340847573,1729922892527,-883.16466276,0.0003999,120]
[340847574,1729922892564,-476.83437341,0.00039999,31]
[340847575,1729922892601,-213.29848305,0.00039999,31]
[340847576,1729922892637,-500.0,0.00039999,31]
[340847577,1729922892675,-438.82612386,0.00039999,31]
[340847578,1729922892712,-189.95507609,0.00039999,31]
[340847579,1729922892750,-500.0,0.00039999,31]
[340847580,1729922892789,-500.0,0.00039999,31]
[340847581,1729922892826,-451.74913808,0.00039999,31]
[340847582,1729922892864,-500.0,0.00039999,31]
[340847583,1729922892901,-500.0,0.00039999,31]
[340847584,1729922892936,-500.0,0.00039999,31]
[340847585,1729922892970,-500.0,0.00039999,31]
[340847586,1729922893004,-328.92701152,0.00039999,31]
[340847587,1729922893039,-500.0,0.00039999,31]
[340847588,1729922893073,-500.0,0.00039999,31]
[340847589,1729922893109,-500.0,0.00039999,31]
[340847590,1729922893142,-500.0,0.00039999,31]
[340847591,1729922893175,-411.58172431,0.00039999,31]
[340847592,1729922893211,-500.36747416,0.00039999,31]
[340847593,1729922893250,-500.0,0.00039999,31]
[340847594,1729922893285,-500.0,0.00039999,31]
[340847595,1729922893321,-500.0,0.00039999,31]
[340847596,1729922893359,-500.0,0.00039999,31]
[340847597,1729922893395,-600.11024225,0.00039999,31]
[340847598,1729922893433,-464.01623717,0.00039999,31]
[340847599,1729922893469,-500.0,0.00039999,31]
[340847600,1729922893503,-389.46528571,0.00039999,31]
[340847601,1729922893538,-187.38624116,0.00039999,31]
[340847602,1729922893571,-1000.0,0.0004,30]
[340847603,1729922893606,-1000.0,0.0004,30]
[340847604,1729922893641,-1000.0,0.0004,30]
[340847605,1729922893677,-1000.0,0.0004,30]
[340847606,1729922893710,-1000.0,0.0004,30]
[340847607,1729922893744,-1000.0,0.0004,30]
[340847608,1729922893778,-1000.0,0.0004,30]
[340847609,1729922893812,-1000.0,0.0004,30]
[340847610,1729922893844,-1000.0,0.0004,30]
[340847611,1729922893877,-1016.2932,0.0004,30]
[340847612,1729922893912,-2129.79976709,0.0004,90]
[340847613,1729922893946,-190.48738905,0.0004,120]
[340847614,1729922893979,-218.46340877,0.0004,60]
[340847615,1729922894012,-500.0,0.0004,30]
[340847616,1729922894046,-500.0,0.0004,120]
[340847617,1729922894078,-1452.41116037,0.0004,120]
[340847618,1729922894111,-400.0,0.0004,120]
[340847619,1729922894142,-1001.86198256,0.0004,120]
[340847620,1729922894324,-742.12154031,0.0004,120]
[340847621,1729922894361,-807.58073671,0.0004,120]
[340847622,1729922894398,-251.11704377,0.0004,30]
[340847623,1729922894435,-3985.55431945,0.0004,120]
[340847624,1729922894469,-5000.0,0.0004,30]
[340847625,1729922894505,-500.0,0.0004,120]
[340847626,1729922894540,-529.03,0.0004,120]
[340847627,1729922894577,-500.0,0.0004,120]
[340847628,1729922894614,-561.85,0.0004,120]
[340847629,1729922894650,-573.22,0.0004,120]
[340847630,1729922894686,-500.0,0.0004,120]
[340847631,1729922894721,-511.31,0.0004,120]
[340847632,1729922894758,-1069.36,0.0004,120]
[340847633,1729922894795,-500.0,0.0004,120]
[340847634,1729922894831,-770.08,0.0004,120]
[340847635,1729922894866,-587.05,0.0004,120]
[340847636,1729922894899,-500.0,0.0004,120]
[340847637,1729922894932,-500.0,0.0004,120]
[340847638,1729922894967,-500.0,0.0004,120]
[340847639,1729922895002,-741.21,0.0004,120]
[340847640,1729922895038,-500.0,0.0004,120]
[340847641,1729922895071,-860.83,0.0004,120]
[340847642,1729922895107,-523.0,0.0004,120]
[340847643,1729922895139,-701.19,0.0004,120]
[340847644,1729922895173,-688.14,0.0004,120]
[340847645,1729922895207,-500.0,0.0004,120]
[340847646,1729922895242,-500.0,0.0004,120]
[340847647,1729922895275,-500.0,0.0004,120]
[340847648,1729922895308,-651.97,0.0004,120]
[340847649,1729922895344,-275.69407682,0.0004,120]
[340847650,1729922895378,-500.0,0.0004,120]
[340847651,1729922895412,-1101.64,0.0004,120]
[340847652,1729922895448,-631.38,0.0004,120]
[340847653,1729922895486,-573.43239504,0.0004,120]
[340847654,1729922895524,-264.80917831,0.0004,120]
[340847655,1729922895561,-500.0,0.0004,120]
[340847656,1729922895598,-512.3,0.0004,120]
[340847657,1729922895633,-877.85,0.0004,120]
[340847658,1729922895669,-500.0,0.0004,120]
[340847659,1729922895703,-671.09,0.0004,120]
[340847660,1729922895737,-500.0,0.0004,120]
[340847661,1729922895773,-1529.36,0.0004,120]
[340847662,1729922895811,-500.0,0.0004,120]
[340847663,1729922895846,-1375.9,0.0004,120]
[340847664,1729922895881,-500.0,0.0004,120]
[340847665,1729922895914,-541.09,0.0004,120]
[340847666,1729922895951,-1117.62,0.0004,120]
[340847667,1729922895987,-500.0,0.0004,120]
[340847668,1729922896022,-2332.27,0.0004,120]
[340847669,1729922896056,-500.0,0.0004,120]
[340847670,1729922896091,-501.79892043,0.0004,120]
[340847671,1729922896125,-1077.9,0.0004,120]
[340847672,1729922896160,-528.69073302,0.0004,120]
[340847673,1729922896195,-603.68,0.0004,120]
[340847674,1729922896231,-726.9,0.0004,120]
[340847675,1729922896267,-1364.93,0.0004,120]
[340847676,1729922896301,-500.0,0.0004,120]
[340847677,1729922896336,-519.91,0.0004,120]
[340847678,1729922896372,-742.5,0.0004,120]
[340847679,1729922896409,-1556.5,0.0004,120]
[340847680,1729922896445,-1055.85,0.0004,120]
[340847681,1729922896482,-529.75,0.0004,120]
[340847682,1729922896519,-1021.03,0.0004,120]
[340847683,1729922896554,-563.99,0.0004,120]
[340847684,1729922896590,-500.0,0.0004,120]
[340847685,1729922896625,-522.88939631,0.0004,120]
[340847686,1729922896660,-683.79,0.0004,120]
[340847687,1729922896694,-500.0,0.0004,120]
[340847688,1729922896727,-308.38420808,0.0004,120]
[340847689,1729922896762,-500.0,0.0004,120]
[340847690,1729922896796,-539.15,0.0004,120]
[340847691,1729922896830,-500.0,0.0004,120]
[340847692,1729922896865,-500.0,0.0004,120]
[340847693,1729922896903,-806.51,0.0004,120]
[340847694,1729922896937,-1274.97,0.0004,120]
[340847695,1729922896972,-818.92,0.0004,120]
[340847696,1729922897006,-1696.78,0.0004,120]
[340847697,1729922897040,-682.77,0.0004,120]
[340847698,1729922897075,-500.0,0.0004,120]
[340847699,1729922897111,-1069.12,0.0004,120]
[340847700,1729922897145,-500.0,0.0004,120]
[340847701,1729922897180,-1031.89,0.0004,120]
[340847702,1729922897216,-657.5,0.0004,120]
[340847703,1729922897251,-919.35,0.0004,120]
[340847704,1729922897285,-587.5,0.0004,120]
[340847705,1729922897319,-500.0,0.0004,120]
[340847706,1729922897498,-500.0,0.0004,120]
[340847707,1729922897535,-500.0,0.0004,120]
[340847708,1729922897573,-500.0,0.0004,120]
[340847709,1729922897611,-500.0,0.0004,120]
[340847710,1729922897648,-838.34,0.0004,120]
[340847711,1729922897684,-539.66,0.0004,120]
[340847712,1729922897720,-671.94,0.0004,120]
[340847713,1729922897760,-200.0,0.0004,120]
[340847714,1729922897794,-500.0,0.0004,120]
[340847715,1729922897829,-651.68,0.0004,120]
[340847716,1729922897864,-690.97,0.0004,120]
[340847717,1729922897902,-25955.76,0.0004,60]
[340847718,1729922897937,-500.0,0.0004,120]
[340847719,1729922897972,-854.34,0.0004,120]
[340847720,1729922898007,-1000.0,0.0004,120]
[340847721,1729922898043,-1115.62,0.0004,120]
[340847722,1729922898078,-2200.05,0.0004,120]
[340847723,1729922898113,-629.76,0.0004,120]
[340847724,1729922898149,-1907.85,0.0004,120]
[340847725,1729922898185,-506.27075778,0.0004,120]
[340847726,1729922898221,-2156.9,0.0004,120]
[340847727,1729922898256,-505.8003046,0.0004,120]
[340847728,1729922898292,-500.0,0.0004,120]
[340847729,1729922898329,-502.52987085,0.0004,120]
[340847730,1729922898363,-943.32,0.0004,120]
[340847731,1729922898397,-1041.41,0.0004,120]
[340847732,1729922898433,-3371.57,0.0004,120]
[340847733,1729922898469,-728.94,0.0004,120]
[340847734,1729922898504,-651.62,0.0004,120]
[340847735,1729922898545,-570.17,0.0004,120]
[340847736,1729922898582,-748.84,0.0004,120]
[340847737,1729922898616,-538.73,0.0004,120]
[340847738,1729922898653,-625.81,0.0004,120]
[340847739,1729922898689,-1000.17,0.0004,120]
[340847740,1729922898723,-678.04,0.0004,120]
[340847741,1729922898758,-521.6469581,0.0004,120]
[340847742,1729922898793,-529.84,0.0004,120]
[340847743,1729922898828,-500.0,0.0004,120]
[340847744,1729922898865,-648.97,0.0004,120]
[340847745,1729922898902,-500.0,0.0004,120]
[340847746,1729922898937,-962.66,0.0004,120]
[340847747,1729922898973,-638.5,0.0004,60]
[340847748,1729922899009,-500.0,0.0004,120]
[340847749,1729922899044,-700.16,0.0004,120]
[340847750,1729922899078,-500.0,0.0004,120]
[340847751,1729922899113,-500.0,0.0004,120]
[340847752,1729922899149,-500.0,0.0004,120]
[340847753,1729922899184,-1128.88,0.0004,120]
[340847754,1729922899221,-523.1,0.0004,120]
[340847755,1729922899257,-5876.07,0.0004,120]
[340847756,1729922899293,-500.0,0.0004,120]
[340847757,1729922899326,-853.81,0.0004,120]
[340847758,1729922899360,-838.79,0.0004,120]
[340847759,1729922899396,-590.88,0.0004,120]
[340847760,1729922899430,-757.11,0.0004,120]
[340847761,1729922899467,-506.84453403,0.0004,120]
[340847762,1729922899502,-500.0,0.0004,120]
[340847763,1729922899539,-591.89,0.0004,120]
[340847764,1729922899574,-504.69548177,0.0004,120]
[340847765,1729922899608,-658.79,0.0004,120]
[340847766,1729922899642,-500.0,0.0004,120]
[340847767,1729922899677,-699.36,0.0004,120]
[340847768,1729922899711,-2202.48,0.0004,120]
[340847769,1729922899745,-12053.78,0.0004,60]
[340847770,1729922899777,-740.49,0.0004,120]
[340847771,1729922899813,-500.0,0.0004,120]
[340847772,1729922899846,-596.71,0.0004,120]
[340847773,1729922899879,-500.0,0.0004,120]
[340847774,1729922899912,-618.89,0.0004,120]
[340847775,1729922899947,-502.8453108,0.0004,120]
[340847776,1729922899981,-852.92,0.0004,120]
[340847777,1729922900018,-500.0,0.0004,120]
[340847778,1729922900054,-500.0,0.0004,120]
[340847779,1729922900088,-714.12,0.0004,120]
[340847780,1729922900123,-1004.2,0.0004,120]
[340847781,1729922900157,-4091.94,0.0004,120]
[340847782,1729922900196,-2465.37,0.0004,120]
[340847783,1729922900230,-500.0,0.0004,120]
[340847784,1729922900265,-500.0,0.0004,30]
[340847785,1729922900298,-6307.75,0.0004,120]
[340847786,1729922900332,-1333.31,0.0004,120]
[340847787,1729922900365,-1109.11,0.0004,120]
[340847788,1729922900401,-745.83,0.0004,120]
[340847789,1729922900587,-663.59,0.0004,120]
[340847790,1729922900623,-3262.64,0.0004,120]
[340847791,1729922900658,-755.36,0.0004,120]
[340847792,1729922900696,-500.0,0.0004,120]
[340847793,1729922900736,-509.83,0.0004,120]
[340847794,1729922900769,-1887.15,0.0004,120]
[340847795,1729922900803,-732.27,0.0004,120]
[340847796,1729922900836,-666.9,0.0004,120]